Cogmind - Beta 16 @@@ ROGUE MODE // 2026.01.22 @ 22:57:25 Player: robotix Result: Smashed by cave-in Performance ------------- Evolutions (0) 0 Regions Visited (2) 400 Robots Destroyed (25) 125 Value Destroyed (613) 613 Prototype IDs (4) 80 Alien Tech Used (0) 0 Bonus (0) 0 TOTAL SCORE: 1218 Bonus ------- None Cogmind --------- Core Integrity 0/250 Matter 148/300 Energy 100/100 System Corruption 18% Temperature Cool (0) Movement Walking (120) Location -10/Mines Parts ------- > --- POWER (1) -------- (None) > --- PROPULSION (2) --- Aluminum Leg > --- UTILITY (2) ------ Small Storage Unit > --- WEAPON (2) ------- (None) > --- INVENTORY (8) ---- Aluminum Leg Improved Heat Sink Beam Cannon Beam Cannon Shotgun Shotgun Improved Light Cannon Peak State ------------ > --- POWER ------------ Light Ion Engine > --- PROPULSION ------- Aluminum Leg Aluminum Leg > --- UTILITY ---------- Small Storage Unit Targeting Computer > --- WEAPON ----------- Improved Light Cannon Improved Light Cannon > --- INVENTORY -------- Light Ion Engine Aluminum Leg Aluminum Leg Improved Heat Sink Particle Gun Beam Cannon Beam Cannon Mining Laser [Rating: 10] Favorites ----------- Power Light Ion Engine Engine Light Ion Engine Propulsion Aluminum Leg Leg Aluminum Leg Utility Small Storage Unit Storage Small Storage Unit Processor Targeting Computer Weapon Improved Light Cannon Energy Gun Small Laser Energy Cannon Beam Cannon Ballistic Gun Shotgun Ballistic Cannon Improved Light Cannon Special Weapon Mining Laser Build | -11 -10 -10 ------- Run | Yrd Mat Min Slots Evolved . | . . . Power . | . . . Propulsion . | . . . Utility . | . . . Weapon . | . . . Parts Attached 20 | 6 12 2 Power 2 | 1 . 1 Engine 2 | 1 . 1 Core . | . . . Reactor . | . . . Propulsion 5 | 2 3 . Treads . | . . . Leg 5 | 2 3 . Wheel . | . . . Hover . | . . . Flight . | . . . Utility 3 | 1 2 . Device . | . . . Storage 2 | 1 1 . Processor 1 | . 1 . Hackware . | . . . Protection . | . . . Artifact . | . . . Weapon 10 | 2 7 1 Energy Gun 3 | 2 1 . Energy Cannon 2 | . 2 . Ballistic Gun 2 | . 2 . Ballistic Cannon 2 | . 2 . Launcher . | . . . Special Weapon 1 | . . 1 Impact Weapon . | . . . Slashing Weapon . | . . . Piercing Weapon . | . . . Special Melee Weapon . | . . . Unidentified Prototypes . | . . . Parts Lost 10 | . 4 6 Power 2 | . . 2 Propulsion 3 | . 2 1 Utility 1 | . . 1 Weapon 4 | . 2 2 Highest Loss Streak 5 | . 3 5 To Critical Strikes . | . . . Average Backups 5 | . 5 7 Power . | . 1 . Propulsion 1 | . 1 1 Utility . | . . 1 Weapon 2 | . 2 5 Tool/Special . | . . . Unused Backups 5 | . 1 4 Power . | . . . Propulsion 1 | . . 1 Utility 2 | . 1 1 Weapon 2 | . . 2 Tool/Special . | . . . Average Slot Usage (%) 96 | . 97 88 Engine 13 | . 14 5 Leg 28 | . 28 28 Storage 14 | . 14 14 Processor 12 | . 12 14 Energy Gun 8 | . 9 . Energy Cannon 4 | . 5 . Ballistic Gun 2 | . 1 10 Ballistic Cannon 11 | . 11 9 Peak Build Rating 10 | 6 10 10 Average Rating 8 | 4 8 8 On Entrance 5 | . 6 10 Avg Prop Armor Cover (%) . | . . . Naked Turns . | . . . Heaviest Build 16 | 10 16 15 Greatest Support 20 | 20 20 20 Greatest Overweight (x) 3 | 3 1 . Average Overweight (x) . | . . . Largest Inventory Capacity 8 | 8 8 8 Average Capacity 7 | 7 8 8 Most Carried 8 | 3 8 8 Average Carried 5 | . 5 7 Final Capacity 8 | 8 8 8 Final Carried 8 | 1 8 7 Class Distribution -------------------- 94% | Mutant 5% | Scavenger-Mutant Dominant Class ---------------- Mutant | -10/Materials Mutant | -10/Mines Resources | -11 -10 -10 ----------- Run | Yrd Mat Min Matter Collected 516 | 202 314 . Remotely . | . . . Salvage Created 803 | . 791 12 Parts 49 | . 45 4 Haulers Intercepted 2 | . 2 . Recyclers Shooed 3 | . 3 . Parts Field Recycled . | . . . Retrieved Matter . | . . . Parts Self-Destructed . | . . . Prevented . | . . . Parts Restored . | . . . Kills | -11 -10 -10 ------- Run | Yrd Mat Min Combat Hostiles Destroyed 13 | . 10 3 Guns 8 | . 8 . Cannons 3 | . 2 1 AOE 2 | . . 2 Classes Destroyed 9 | . 8 1 Worker 2 | . 2 . Builder 1 | . 1 . Tunneler 1 | . 1 . Hauler 2 | . 2 . Recycler 3 | . 3 . Operator 1 | . 1 . Watcher 2 | . 2 . Swarmer 3 | . . 3 Grunt 10 | . 10 . Best Kill Streak 6 | . 6 3 Combat Bots Only 3 | . 3 3 Max Kills in Single Turn 2 | . 1 2 Gunslinging . | . . . Exploded 2 | . . 2 Melee . | . . . Uniques/NPCs Destroyed . | . . . Combat | -11 -10 -10 -------- Run | Yrd Mat Min Hostile Shots Fired 67 | . 62 5 Missed 20 | . 19 1 Hits 47 | . 43 4 Projectile 47 | . 43 4 Critical Strikes 1 | . 1 . Damage Taken 1317 | . 673 644 Core 265 | . 160 105 Absorbed by Shields . | . . . Core Remaining (%) 100 | 100 . . Volleys Fired 80 | . 65 15 Largest 2 | . 2 2 Hottest 120 | . 120 100 Shots Fired 155 | . 129 26 Gun 94 | . 82 12 Cannon 58 | . 47 11 Launcher . | . . . Special 3 | . . 3 Kinetic 59 | . 36 23 Thermal 96 | . 93 3 Explosive . | . . . Electromagnetic . | . . . Robot Hit Streak 9 | . 9 3 Robot Miss Streak 9 | . 7 9 Penetration Max . | . . . Secondary Targets 1 | . 1 . Max Gunslinging Chain 1 | . 1 . Shots Hit Robots 67 | . 65 2 Core Hits 33 | . 31 2 Critical Kills . | . . . Critical Parts Destroyed . | . . . Critical Strikes 4 | . 4 . Burn 3 | . 3 . Blast 1 | . 1 . Melee Attacks . | . . . Impact . | . . . Slashing . | . . . Piercing . | . . . Sneak Attacks . | . . . Combat Hostiles . | . . . Follow-up Attacks . | . . . Damage Inflicted 1246 | . 983 263 Guns 604 | . 583 21 Cannons 420 | . 400 20 Explosions 222 | . . 222 Melee . | . . . Ramming . | . . . Kinetic 300 | . 259 41 Thermal 946 | . 724 222 Explosive . | . . . Electromagnetic . | . . . Impact . | . . . Slashing . | . . . Piercing . | . . . Highest Corruption 5 | . . 5 Average Corruption 5 | . . 5 Corruption Purged . | . . . Corruption Blocked . | . . . Effects 1 | . . 1 Message Errors 1 | . . 1 Overload Shots . | . . . Overflow Damage 19 | . . 19 Projectiles . | . . . Explosions 19 | . . 19 Melee . | . . . Knockbacks 2 | . 2 . Impact . | . . . Kinetic 2 | . 2 . Secondary . | . . . Self-Inflicted Damage 155 | . . 155 Shots 4 | . . 4 Rammed . | . . . Targets Rammed . | . . . Kicked . | . . . Crushed . | . . . Highest Temperature 400 | . 400 41 Average Temperature 102 | . 108 15 Received Heat Transfer 306 | . 306 . Effects 3 | . 3 . Energy Bleed 1 | . 1 . Matter Decay 1 | . 1 . Damage (minor) 1 | . 1 . Siege Activations . | . . . Martial Activations . | . . . Shielding Activations . | . . . Robots Disrupted . | . . . Combat Hostiles . | . . . Robots Corrupted . | . . . Combat Hostiles . | . . . Parts Fried . | . . . Impact Corruptions . | . . . Robots Melted . | . . . Combat Hostiles . | . . . Parts Melted 4 | . 4 . Heat Transferred 2111 | . 1861 250 Parts Sabotaged . | . . . Parts Stolen . | . . . Parts Stripped . | . . . Power Chain Reactions . | . . . Alert | -11 -10 -10 ------- Run | Yrd Mat Min Maximum Alert Level 1 | . . 1 Low Security (%) 99 | 100 100 94 Level 1 . | . . 5 Level 2 . | . . . Level 3 . | . . . Level 4 . | . . . Level 5 . | . . . High Security . | . . . Max Security . | . . . Peak Influence 208 | . 85 208 Initial . | . . . Average 33 | . 22 169 Influence Increases 600 | . 382 218 Destroy 0b10 Robot/C 260 | . 200 60 Destroy 0b10 Robot/NC 60 | . 60 . Destroy Leader 68 | . 58 10 Successful Hack 16 | . 16 . Disable Machine 180 | . 45 135 Destroy Structure 16 | . 3 13 Influence Decreases 502 | . 382 120 Time Decay 402 | . 342 60 Lost Part 100 | . 40 60 Squads Dispatched 2 | . 2 . Investigation 1 | . 1 . Extermination . | . . . Reinforcement 1 | . 1 . Assault . | . . . Garrison . | . . . Intercept . | . . . Searches Triggered . | . . . Construction Impeded . | . . . Haulers Reinforced . | . . . Active Scanning Responses . | . . . Cargo Convoy Interrupts . | . . . Stealth | -11 -10 -10 --------- Run | Yrd Mat Min Distress Signals 3 | . 3 . Communications Jammed . | . . . Distress Signals . | . . . Times Spotted 22 | . 19 3 Peak Tracking Total 6 | . 6 3 Tactical Retreats . | . . . Traps | -11 -10 -10 ------- Run | Yrd Mat Min Traps Triggered 2 | . 2 . Indirectly . | . . . Trap Hack Attempts . | . . . Triggered . | . . . Disarmed . | . . . Reprogrammed . | . . . Reused . | . . . Traps Extracted . | . . . Installed . | . . . Triggered . | . . . Machines | -11 -10 -10 ---------- Run | Yrd Mat Min Machines Disabled 12 | . 3 9 Max in Single Turn 9 | . 1 9 Machines Repaired . | . . . Machines Dismantled . | . . . Machines Sabotaged . | . . . Overloaded Fab Kills . | . . . Hacking | -11 -10 -10 --------- Run | Yrd Mat Min Machines Accessed 6 | . 6 . Terminals 6 | . 6 . Fabricators . | . . . Repair Stations . | . . . Recycling Units . | . . . Scanalyzers . | . . . Garrison Access . | . . . Total Hacks 14 | . 14 . Successful 8 | . 8 . Failed 6 | . 6 . Catastrophic 1 | . 1 . Database Lockouts . | . . . Manual . | . . . Terminals 14 | . 14 . Fabricators . | . . . Repair Stations . | . . . Recycling Units . | . . . Scanalyzers . | . . . Garrison Access . | . . . Terminal Hacks 8 | . 8 . Robot Analysis 2 | . 2 . Prototype ID Bank 2 | . 2 . Locate Traps 2 | . 2 . Maintenance Status 1 | . 1 . Hauler Manifests 1 | . 1 . Fabricator Hacks . | . . . Repair Station Hacks . | . . . Recycling Unit Hacks . | . . . Scanalyzer . | . . . Garrison Access Hacks . | . . . Unauthorized Hacks . | . . . Terminals . | . . . Fabricators . | . . . Repair Stations . | . . . Recycling Units . | . . . Scanalyzers . | . . . Garrison Access . | . . . Data Cores Recovered . | . . . Used . | . . . Hacking Detections 2 | . 2 . Full Trace Events 1 | . 1 . Feedback Events . | . . . Feedback Blocked . | . . . Robot Schematics Acquired . | . . . Robots Built . | . . . Authchips . | . . . Time . | . . . Total Robot Build Rating . | . . . Part Schematics Acquired . | . . . Parts Built . | . . . Authchips . | . . . Time . | . . . Total Part Build Rating . | . . . Part Studies Acquired . | . . . Parts Repaired . | . . . Time . | . . . Parts Recycled . | . . . Recycled Matter . | . . . Retrieved Matter . | . . . Retrieved Components . | . . . Parts Scanalyzed . | . . . Part Schematics Acquired . | . . . Parts Damaged . | . . . Bothacking | -11 -10 -10 ------------ Run | Yrd Mat Min Used RIF Installer . | . . . Robots Hacked . | . . . Non-combat . | . . . Combat . | . . . Robot Hacks Applied . | . . . Relay Couplers Released . | . . . Fabnet Peak Effective % . | . . . Robots Rewired . | . . . Allies Hacked . | . . . Hacks Repelled . | . . . Allies | -11 -10 -10 -------- Run | Yrd Mat Min Total Allies . | . . . Largest Group . | . . . Highest-Rated Group . | . . . Highest-Rated Ally . | . . . Total Orders . | . . . Ally Attacks . | . . . Total Damage . | . . . Kills . | . . . Allies Corrupted . | . . . Allies Melted . | . . . Intel | -11 -10 -10 ------- Run | Yrd Mat Min Active Infowar (turns) . | . . . Robot Analysis Total 2 | . 2 . Derelict Logs Recovered . | . . . Drone Launches . | . . . Drone Recoveries . | . . . Exploration | -11 -10 -10 ------------- Run | Yrd Mat Min Turns Passed 1414 | 72 1222 120 Spaces Moved 881 | 45 798 38 Core 22 | 22 . . Treads . | . . . Legs 859 | 23 798 38 Wheels . | . . . Hover . | . . . Flight . | . . . Fastest Speed 50 | 50 120 120 Average Speed 120 | 132 120 120 Slowest Speed 200 | 200 190 120 Overloaded Moves . | . . . Propulsion Burnouts . | . . . Robots Hopped . | . . . Potential Cave-ins 12 | . . 12 Cave-ins Triggered 2 | . . 2 Exploration Rate (%) 40 | 4 98 19 Regions Visited 2 Branch Regions 1 Pre-discovered Areas . | . . . Known Exits Taken . | . . . Unknown Exits Taken 2 | 1 1 . Scrap Searched . | . . . Spaces Dug 10 | . 1 9 Terrain Destroyed 29 | . 3 26 Melee . | . . . Projectile 12 | . 3 9 AOE 17 | . . 17 Terrain Rammed . | . . . Walls Destroyed . | . . . Machines Disabled . | . . . Actions | -11 -10 -10 --------- Run | Yrd Mat Min Total 1066 | 57 929 80 Wait 57 | . 33 24 Move 878 | 44 797 37 Hop . | . . . Pick Up 23 | 7 16 . Fast Attach . | . . . Attach 12 | 6 5 1 Detach . | . . . Swap 11 | . 9 2 Drop 4 | . 4 . Fire 80 | . 65 15 Melee . | . . . Ram . | . . . Kick . | . . . Crush . | . . . Escape Stasis 1 | . . 1 Rewire . | . . . Trap . | . . . Miscellaneous . | . . . Route ------- -11/Scrapyard -10/Materials (discovered 4 exits: [*Mat x3] / [*Min]) -10/Mines History --------- Turn | Location | Event 8 | -11/Scrapyard | Discovered new exit (range 16) 73 | -11/Scrapyard | Entered Materials 130 | -10/Materials | Discovered new exit (range 14) 311 | -10/Materials | Build established: Mutant 466 | -10/Materials | Core integrity fell below 50% 480 | -10/Materials | Discovered new exit (range 14) 509 | -10/Materials | Lost 3 parts (2n1w) 552 | -10/Materials | Discovered new exit (range 11) 710 | -10/Materials | Discovered new exit (range 16) 1295 | -10/Materials | Entered Mines 1304 | -10/Mines | Core integrity fell below 20% 1309 | -10/Mines | Met a Derelict bent on vengeance 1391 | -10/Mines | Crushed by falling debris 1416 | -10/Mines | Crushed by falling debris 1416 | -10/Mines | Smashed by cave-in Last Messages --------------- U-05 Engineer builds a Wall. The unstable cave ceiling collapses. U-05 Engineer lays Concrete. The unstable cave ceiling collapses. Crushed by falling debris. [Achievement: Unlikely Earthworm] Lgt. Ion Engine destroyed. System corrupted by crushing effect (+2). Shotgun destroyed. System corrupted by crushing effect (+3). The unstable cave ceiling collapses. AVQN CUQVK: DU6>OZ&&GML:XE The unstable cave ceiling collapses. Crushed by falling debris. Targeting Computer destroyed. System corrupted by crushing effect (+4). Aluminum Leg destroyed. System corrupted by crushing effect (+4). Mining Laser destroyed. System corrupted by crushing effect (+5). Map ----- +----------------------------------------------------+ | | | | | | | | | | | | | | | | | | | | | | | | | | | | | | | | | | | | | | | | | | | | | | | | | ?????????????????????###??????????????????????? | | ?????????????????????#@#??????????????????????? | | ????################?# #??????????????????????? | | ????# ### #??????????????????????? | | ????# "####??????????????????????? | | ????# "####?????###??????????????? | | ????# "####????# ##?????????????? | | ????# " # #???# #?????????????? | | ????# ####?## #?????????????? | | ????# ##?## #?????????????? | | ????# % # #?## #?????????????? | | ????# ##### #?????????????? | | ????# ###???????????? | | ????# #????? | | ????# ""# ^ #?????? | | ????# ### ####### #??????? | | ????# #?# ###??????????????? | | ????# """ #?# #????????????????? | | ????# """ #?# #????????????????? | | ????# """ #?# #???????????????? | | ????# #?## #??????????????? | | ????####"##"########??## #??????????????? | | ???????##?##???????????# #??????????????? | | ???????????????????????# ##??????????????? | | ???????????????????????# ##???????????????? | | ???????????????????????# ##????????????????? | +----------------------------------------------------+ Best States ------------- Heat Dissipation 25 Energy Generation 10 Energy Capacity 125 Matter Stores 300 Matter Capacity 300 Sight Range 16 Terrain Scan Density 10 Evasion (%) 55 Targeting Accuracy 5 Item Schematics ----------------- None Robot Schematics ------------------ None Fabricated ------------ Nothing Repaired ---------- Nothing Studied --------- None Alien Tech Used ----------------- None Achievements -------------- Unlikely Earthworm Challenges ------------ None Game ------ Seed MissileWeightStripper Manual? 0 Play Time 00:15:12 Cumulative 22.2 hours Start 2026.01.22 @ 22:40:12 End 2026.01.22 @ 22:57:25 Sessions 1 Manual Loads 0 Difficulty Rogue Special Mode None Game No. 17 Rogue 17 Adventurer 0 Explorer 0 Win Type - Total 0 Types 0/0/0/0/0/0/0/0/0/0 Lore% 15 Gallery% 23 Achievement% 18 Wizard Run 0 Options --------- Layout 1 ASCII 0 Keyboard 0 Movement Mouse Keybinds 0 Fullscreen 1 Font 16/SmallcapsGlow Map View 55x38 Zoom Use 0% Tactical HUD 0 Map Filters NONE Filters NONE Steam 1 RUN: 44e5b8e1-f734-45c6-9b91-d0e93e8cb2d5